Workbook

Sheet Commande hebdomadaire des purée
B1: Commande hebdomadaire des purées du: | F1: 28.06 au 02.08 | AT1: k
B2: Site ou établissement:……………CAP BULLE…………………...…Semaine du: | G2: 2021-08-02 | H2: =G2+4 -> 2021-08-06
B3: VARIANTES | C3: LUNDI | D3: MARDI | E3: MERCREDI | F3: JEUDI | G3: VENDREDI | H3: Total | K3: =B90 -> TYPES | L3: VARIANTES | M3: LUNDI | N3: MARDI | O3: MERCREDI | P3: JEUDI | Q3: VENDREDI | R3: TOTAL | AI3: Type | AJ3: VARIANTES | AK3: LUNDI | AL3: MARDI | AM3: MERCREDI | AN3: JEUDI | AO3: VENDREDI | AP3: TOTAL
B4: Date | C4: =G2 -> 2021-08-02 | D4: =C4+1 -> 2021-08-03 | E4: =D4+1 -> 2021-08-04 | F4: =E4+1 -> 2021-08-05 | G4: =F4+1 -> 2021-08-06 | K4: 0 | L4: 0 | M4: 0 | N4: 0 | O4: 0 | P4: 0 | Q4: 0 | R4: 0
B5: Compotes | K5: 0 | L5: 0 | M5: 0 | N5: 0 | O5: 0 | P5: 0 | Q5: 0 | R5: 0 | AI5: Compotes | AJ5: Abricot | AK5: 310 | AL5: 0 | AM5: 370 | AN5: 190 | AO5: 270 | AP5: =AK5+AL5+AM5+AN5+AO5 -> 1140
B6: Pommes | C6: 1050 | D6: 300 | E6: 1000 | F6: 550 | G6: 550 | H6: =C6+D6+E6+F6+G6 -> 3450 | K6: 0 | L6: 0 | M6: 0 | N6: 0 | O6: 0 | P6: 0 | Q6: 0 | R6: 0 | AI6: Compotes | AJ6: Banane | AK6: 100 | AL6: 90 | AM6: 625 | AN6: 0 | AO6: 335 | AP6: =AK6+AL6+AM6+AN6+AO6 -> 1150
B7: Poires | C7: 300 | D7: 1000 | F7: 1050 | G7: 350 | H7: =C7+D7+E7+F7+G7 -> 2700 | K7: 0 | L7: 0 | M7: 0 | N7: 0 | O7: 0 | P7: 0 | Q7: 0 | R7: 0 | AI7: Compotes | AJ7: Framboise | AK7: 0 | AL7: 0 | AM7: 0 | AN7: 0 | AO7: 0 | AP7: 0
B8: Abricot | E8: 400 | F8: 200 | G8: 250 | H8: =C8+D8+E8+F8+G8 -> 850 | K8: 0 | L8: 0 | M8: 0 | N8: 0 | O8: 0 | P8: 0 | Q8: 0 | R8: 0 | AI8: Compotes | AJ8: Kiwi | AK8: 0 | AL8: 0 | AM8: 0 | AN8: 0 | AO8: 0 | AP8: 0
B9: Banane | C9: 100 | D9: 100 | E9: 600 | G9: 350 | H9: =C9+D9+E9+F9+G9 -> 1150 | K9: 0 | L9: 0 | M9: 0 | N9: 0 | O9: 0 | P9: 0 | Q9: 0 | R9: 0 | AI9: Compotes | AJ9: Mangue | AK9: 0 | AL9: 0 | AM9: 0 | AN9: 0 | AO9: 0 | AP9: 0
B10: Féculents | K10: 0 | L10: 0 | M10: 0 | N10: 0 | O10: 0 | P10: 0 | Q10: 0 | R10: 0 | AI10: Compotes | AJ10: Nectarine | AK10: 0 | AL10: 0 | AM10: 0 | AN10: 0 | AO10: 0 | AP10: 0
B11: Pommes de terre | C11: 450 | D11: 150 | E11: 250 | F11: 350 | G11: 150 | H11: =C11+D11+E11+F11+G11 -> 1350 | K11: 0 | L11: 0 | M11: 0 | N11: 0 | O11: 0 | P11: 0 | Q11: 0 | R11: 0 | AI11: Compotes | AJ11: Pêche | AK11: 0 | AL11: 0 | AM11: 0 | AN11: 0 | AO11: 0 | AP11: 0
B12: Riz (mixé) | F12: 150 | H12: =C12+D12+E12+F12+G12 -> 150 | K12: 0 | L12: 0 | M12: 0 | N12: 0 | O12: 0 | P12: 0 | Q12: 0 | R12: 0 | AI12: Compotes | AJ12: Poire | AK12: 0 | AL12: 955 | AM12: 0 | AN12: 1070 | AO12: 325 | AP12: 2350
B13: Petites pâtes (non mixées) | E13: 350 | H13: =C13+D13+E13+F13+G13 -> 350 | K13: 0 | L13: 0 | M13: 0 | N13: 0 | O13: 0 | P13: 0 | Q13: 0 | R13: 0 | AI13: Compotes | AJ13: Pomme | AK13: 1030 | AL13: 300 | AM13: 1010 | AN13: 540 | AO13: 535 | AP13: 3415
B14: Semoule de maïs | D14: 300 | G14: 300 | H14: =C14+D14+E14+F14+G14 -> 600 | K14: 0 | L14: 0 | M14: 0 | N14: 0 | O14: 0 | P14: 0 | Q14: 0 | R14: 0 | AI14: Compotes | AJ14: Prune | AK14: 0 | AL14: 0 | AM14: 0 | AN14: 0 | AO14: 0 | AP14: 0
B15: Purées de légumes | K15: 0 | L15: 0 | M15: 0 | N15: 0 | O15: 0 | P15: 0 | Q15: 0 | R15: 0 | AI15: Compotes | AJ15: Pruneaux | AK15: 0 | AL15: 0 | AM15: 0 | AN15: 0 | AO15: 0 | AP15: 0
B16: Fenouil | D16: 600 | F16: 350 | G16: 300 | H16: =C16+D16+E16+F16+G16 -> 1250 | K16: 0 | L16: 0 | M16: 0 | N16: 0 | O16: 0 | P16: 0 | Q16: 0 | R16: 0 | AI16: Compotes | AJ16: Fraise | AK16: 0 | AL16: 0 | AM16: 0 | AN16: 0 | AO16: 0 | AP16: 0
B17: Epinards | C17: 500 | E17: 350 | F17: 400 | G17: 150 | H17: 1400 | K17: 0 | L17: 0 | M17: 0 | N17: 0 | O17: 0 | P17: 0 | Q17: 0 | R17: 0 | AI17: Compotes | AJ17: Yoghourt | AK17: 0 | AL17: 0 | AM17: 0 | AN17: 0 | AO17: 0 | AP17: 0
B18: Panais | C18: 250 | E18: 700 | G18: 100 | H18: 1050 | K18: 0 | L18: 0 | M18: 0 | N18: 0 | O18: 0 | P18: 0 | Q18: 0 | R18: 0 | AI18: Compotes | AJ18: - | AK18: 0 | AL18: 0 | AM18: 0 | AN18: 0 | AO18: 0 | AP18: 0
B19: Carottes | C19: 450 | E19: 500 | F19: 750 | G19: 300 | H19: 2000 | K19: 0 | L19: 0 | M19: 0 | N19: 0 | O19: 0 | P19: 0 | Q19: 0 | R19: 0 | AI19: Féculents | AJ19: PDT | AK19: 455 | AL19: 120 | AM19: 260 | AN19: 355 | AO19: 110 | AP19: =AK19+AL19+AM19+AN19+AO19 -> 1300
B20: Romanesco | D20: 150 | G20: 100 | H20: 250 | K20: 0 | L20: 0 | M20: 0 | N20: 0 | O20: 0 | P20: 0 | Q20: 0 | R20: 0 | AI20: Féculents | AJ20: PDT Douce | AK20: 0 | AL20: 0 | AM20: 0 | AN20: 0 | AO20: 0 | AP20: =AK20+AL20+AM20+AN20+AO20 -> 0
B21: Courgette | C21: 200 | D21: 650 | E21: 350 | F21: 150 | G21: 550 | H21: 1900 | K21: 0 | L21: 0 | M21: 0 | N21: 0 | O21: 0 | P21: 0 | Q21: 0 | R21: 0 | AI21: Féculents | AJ21: Riz | AK21: 0 | AL21: 0 | AM21: 0 | AN21: 150 | AO21: 0 | AP21: 150
B22: Purées de viandes | K22: 0 | L22: 0 | M22: 0 | N22: 0 | O22: 0 | P22: 0 | Q22: 0 | R22: 0 | AI22: Féculents | AJ22: Semoule | AK22: 0 | AL22: 305 | AM22: 0 | AN22: 0 | AO22: 300 | AP22: 605
B23: Volaille | D23: 100 | E23: 100 | F23: 100 | G23: 50 | H23: =C23+D23+E23+F23+G23 -> 350 | K23: 0 | L23: 0 | M23: 0 | N23: 0 | O23: 0 | P23: 0 | Q23: 0 | R23: 0 | AI23: Féculents | AJ23: - | AK23: 0 | AL23: 0 | AM23: 0 | AN23: 0 | AO23: 0 | AP23: 0
B24: Veau | C24: 100 | H24: =C24+D24+E24+F24+G24 -> 100 | K24: 0 | L24: 0 | M24: 0 | N24: 0 | O24: 0 | P24: 0 | Q24: 0 | R24: 0 | AI24: Féculents | AJ24: - | AK24: 0 | AL24: 0 | AM24: 0 | AN24: 0 | AO24: 0 | AP24: 0
B25: Poisson | D25: 150 | E25: 50 | H25: =C25+D25+E25+F25+G25 -> 200 | K25: 0 | L25: 0 | M25: 0 | N25: 0 | O25: 0 | P25: 0 | Q25: 0 | R25: 0 | AI25: Féculents | AJ25: - | AK25: 0 | AL25: 0 | AM25: 0 | AN25: 0 | AO25: 0 | AP25: 0
B26: Bœuf | F26: 50 | G26: 100 | H26: =C26+D26+E26+F26+G26 -> 150 | K26: 0 | L26: 0 | M26: 0 | N26: 0 | O26: 0 | P26: 0 | Q26: 0 | R26: 0 | AI26: Féculents | AJ26: - | AK26: 0 | AL26: 0 | AM26: 0 | AN26: 0 | AO26: 0 | AP26: 0
K27: 0 | L27: 0 | M27: 0 | N27: 0 | O27: 0 | P27: 0 | Q27: 0 | R27: 0 | AI27: Féculents | AJ27: - | AK27: 0 | AL27: 0 | AM27: 0 | AN27: 0 | AO27: 0 | AP27: 0
K28: 0 | L28: 0 | M28: 0 | N28: 0 | O28: 0 | P28: 0 | Q28: 0 | R28: 0 | AI28: Féculents | AJ28: - | AK28: 0 | AL28: 0 | AM28: 0 | AN28: 0 | AO28: 0 | AP28: 0
K29: 0 | L29: 0 | M29: 0 | N29: 0 | O29: 0 | P29: 0 | Q29: 0 | R29: 0 | AI29: Féculents | AJ29: - | AK29: 0 | AL29: 0 | AM29: 0 | AN29: 0 | AO29: 0 | AP29: 0
K30: 0 | L30: 0 | M30: 0 | N30: 0 | O30: 0 | P30: 0 | Q30: 0 | R30: 0 | AI30: Féculents | AJ30: - | AK30: 0 | AL30: 0 | AM30: 0 | AN30: 0 | AO30: 0 | AP30: 0
K31: 0 | L31: 0 | M31: 0 | N31: 0 | O31: 0 | P31: 0 | Q31: 0 | R31: 0 | AI31: Purées de légumes | AJ31: Brocolis | AK31: 0 | AL31: 0 | AM31: 0 | AN31: 0 | AO31: 0 | AP31: =AK31+AL31+AM31+AN31+AO31 -> 0
K32: 0 | L32: 0 | M32: 0 | N32: 0 | O32: 0 | P32: 0 | Q32: 0 | R32: 0 | AI32: Purées de légumes | AJ32: Carottes | AK32: 425 | AL32: 0 | AM32: 480 | AN32: 750 | AO32: 280 | AP32: 1935
K33: 0 | L33: 0 | M33: 0 | N33: 0 | O33: 0 | P33: 0 | Q33: 0 | R33: 0 | AI33: Purées de légumes | AJ33: Choux-fleurs | AK33: 0 | AL33: 0 | AM33: 0 | AN33: 0 | AO33: 0 | AP33: 0
K34: 0 | L34: 0 | M34: 0 | N34: 0 | O34: 0 | P34: 0 | Q34: 0 | R34: =I121 -> 0 | AI34: Purées de légumes | AJ34: Courge | AK34: 0 | AL34: 0 | AM34: 0 | AN34: 0 | AO34: 0 | AP34: 0
K35: =B122 -> 0 | L35: 0 | M35: 0 | N35: 0 | O35: 0 | P35: 0 | Q35: 0 | R35: 0 | AI35: Purées de légumes | AJ35: Courgette | AK35: 180 | AL35: 625 | AM35: 360 | AN35: 130 | AO35: 345 | AP35: 1640
AI36: Purées de légumes | AJ36: Epinard | AK36: 510 | AL36: 0 | AM36: 350 | AN36: 395 | AO36: 140 | AP36: 1395
AI37: Purées de légumes | AJ37: Fenouil | AK37: 0 | AL37: 570 | AM37: 0 | AN37: 335 | AO37: 305 | AP37: 1210
AI38: Purées de légumes | AJ38: Haricots | AK38: 0 | AL38: 0 | AM38: 0 | AN38: 0 | AO38: 0 | AP38: 0
AI39: Purées de légumes | AJ39: Petits pois | AK39: 0 | AL39: 0 | AM39: 0 | AN39: 0 | AO39: 0 | AP39: 0
AI40: Purées de légumes | AJ40: Panais | AK40: 245 | AL40: 0 | AM40: 700 | AN40: 0 | AO40: 75 | AP40: 1020
AI41: Purées de légumes | AJ41: Romanesco | AK41: 0 | AL41: 185 | AM41: 0 | AN41: 0 | AO41: 115 | AP41: 300
AI42: Purées de légumes | AJ42: Côte de bette | AK42: 0 | AL42: 0 | AM42: 0 | AN42: 0 | AO42: 0 | AP42: 0
AI43: Purées de légumes | AJ43: Topinambour | AK43: 0 | AL43: 0 | AM43: 0 | AN43: 0 | AO43: 0
AI44: Purées de légumes | AJ44: Chou-pomme | AK44: 0 | AL44: 0 | AM44: 0 | AN44: 0 | AO44: 0 | AP44: =AK44+AL44+AM44+AN44+AO44 -> 0
AI45: Purées de viandes | AJ45: Bœuf | AK45: 0 | AL45: 0 | AM45: 0 | AN45: 60 | AO45: 90 | AP45: =AK45+AL45+AM45+AN45+AO45 -> 150
AI46: Purées de viandes | AJ46: Poisson | AK46: 0 | AL46: 140 | AM46: 50 | AN46: 0 | AO46: 0 | AP46: =AK46+AL46+AM46+AN46+AO46 -> 190
AI47: Purées de viandes | AJ47: Veau | AK47: 100 | AL47: 0 | AM47: 0 | AN47: 0 | AO47: 0 | AP47: 100
AI48: Purées de viandes | AJ48: Volaille | AK48: 0 | AL48: 90 | AM48: 90 | AN48: 100 | AO48: 10 | AP48: 290
AI49: Purées de viandes | AJ49: Kiri | AK49: 60 | AL49: 0 | AM49: 0 | AN49: 0 | AO49: 0 | AP49: 60
AI50: Purées de viandes | AJ50: - | AK50: 0 | AL50: 0 | AM50: 0 | AN50: 0 | AO50: 0 | AP50: 0
AI51: Purées de viandes | AJ51: - | AK51: 0 | AL51: 0 | AM51: 0 | AN51: 0 | AO51: 0 | AP51: 0
AI52: Purées de viandes | AJ52: - | AK52: 0 | AL52: 0 | AM52: 0 | AN52: 0 | AO52: 0 | AP52: 0
AI53: Purées de viandes | AJ53: - | AK53: 0 | AL53: 0 | AM53: 0 | AN53: 0 | AO53: 0 | AP53: 0
AI54: Purées de viandes | AP54: 0
AI55: Purées de viandes | AP55: 0
AI56: Purées de viandes | AP56: 0
AI57: Purées de viandes
AI58: Purées de viandes | AP58: =AK58+AL58+AM58+AN58+AO58 -> 0
B90: TYPES | C90: VARIANTES | D90: LUNDI | E90: MARDI | F90: MERCREDI | G90: JEUDI | H90: VENDREDI | I90: TOTAL

Sheet Feuil1
B1: Commande hebdomadaire des purées du: | F1: 28.06 au 02.08
B2: Site ou établissement:……………CAP BULLE…………………...…Semaine du: | G2: 2021-08-02 | H2: =G2+4 -> 2021-08-06
B3: VARIANTES | C3: LUNDI | D3: MARDI | E3: MERCREDI | F3: JEUDI | G3: VENDREDI | H3: Total | K3: =B90 -> 0 | L3: 0 | M3: 0 | N3: 0 | O3: 0 | P3: 0 | Q3: 0 | R3: 0
B4: Date | C4: =G2 -> 2021-08-02 | D4: =C4+1 -> 2021-08-03 | E4: =D4+1 -> 2021-08-04 | F4: =E4+1 -> 2021-08-05 | G4: =F4+1 -> 2021-08-06 | K4: 0 | L4: 0 | M4: 0 | N4: 0 | O4: 0 | P4: 0 | Q4: 0 | R4: 0
B5: Compotes | K5: 0 | L5: 0 | M5: 0 | N5: 0 | O5: 0 | P5: 0 | Q5: 0 | R5: 0
B6: Pommes | C6: 1050 | D6: 300 | E6: 1000 | F6: 550 | G6: 550 | H6: =C6+D6+E6+F6+G6 -> 3450 | K6: 0 | L6: 0 | M6: 0 | N6: 0 | O6: 0 | P6: 0 | Q6: 0 | R6: 0
B7: Poires | C7: 300 | D7: 1000 | F7: 1050 | G7: 350 | H7: =C7+D7+E7+F7+G7 -> 2700 | K7: 0 | L7: 0 | M7: 0 | N7: 0 | O7: 0 | P7: 0 | Q7: 0 | R7: 0
B8: Abricot | E8: 400 | F8: 200 | G8: 250 | H8: =C8+D8+E8+F8+G8 -> 850 | K8: 0 | L8: 0 | M8: 0 | N8: 0 | O8: 0 | P8: 0 | Q8: 0 | R8: 0
B9: Banane | C9: 100 | D9: 100 | E9: 600 | G9: 350 | H9: =C9+D9+E9+F9+G9 -> 1150 | K9: 0 | L9: 0 | M9: 0 | N9: 0 | O9: 0 | P9: 0 | Q9: 0 | R9: 0
B10: Féculents | K10: 0 | L10: 0 | M10: 0 | N10: 0 | O10: 0 | P10: 0 | Q10: 0 | R10: 0
B11: Pommes de terre | C11: 450 | D11: 150 | E11: 250 | F11: 350 | G11: 150 | H11: =C11+D11+E11+F11+G11 -> 1350 | K11: 0 | L11: 0 | M11: 0 | N11: 0 | O11: 0 | P11: 0 | Q11: 0 | R11: 0
B12: Riz (mixé) | F12: 150 | H12: =C12+D12+E12+F12+G12 -> 150 | K12: 0 | L12: 0 | M12: 0 | N12: 0 | O12: 0 | P12: 0 | Q12: 0 | R12: 0
B13: Petites pâtes (non mixées) | E13: 350 | H13: =C13+D13+E13+F13+G13 -> 350 | I13: =SUM(G6:G9) -> 1500 | K13: 0 | L13: 0 | M13: 0 | N13: 0 | O13: 0 | P13: 0 | Q13: 0 | R13: 0
B14: Semoule de maïs | D14: 300 | G14: 300 | H14: =C14+D14+E14+F14+G14 -> 600 | K14: 0 | L14: 0 | M14: 0 | N14: 0 | O14: 0 | P14: 0 | Q14: 0 | R14: 0
B15: Purées de légumes | K15: 0 | L15: 0 | M15: 0 | N15: 0 | O15: 0 | P15: 0 | Q15: 0 | R15: 0
B16: Fenouil | D16: 600 | F16: 350 | G16: 300 | H16: =C16+D16+E16+F16+G16 -> 1250 | K16: 0 | L16: 0 | M16: 0 | N16: 0 | O16: 0 | P16: 0 | Q16: 0 | R16: 0
B17: Epinards | C17: 500 | E17: 350 | F17: 400 | G17: 150 | H17: 1400 | K17: 0 | L17: 0 | M17: 0 | N17: 0 | O17: 0 | P17: 0 | Q17: 0 | R17: 0
B18: Panais | C18: 250 | E18: 700 | G18: 100 | H18: 1050 | K18: 0 | L18: 0 | M18: 0 | N18: 0 | O18: 0 | P18: 0 | Q18: 0 | R18: 0
B19: Carottes | C19: 450 | E19: 500 | F19: 750 | G19: 300 | H19: 2000 | K19: 0 | L19: 0 | M19: 0 | N19: 0 | O19: 0 | P19: 0 | Q19: 0 | R19: 0
B20: Romanesco | D20: 150 | G20: 100 | H20: 250 | K20: 0 | L20: 0 | M20: 0 | N20: 0 | O20: 0 | P20: 0 | Q20: 0 | R20: 0
B21: Courgette | C21: 200 | D21: 650 | E21: 350 | F21: 150 | G21: 550 | H21: 1900 | K21: 0 | L21: 0 | M21: 0 | N21: 0 | O21: 0 | P21: 0 | Q21: 0 | R21: 0
B22: Purées de viandes | K22: 0 | L22: 0 | M22: 0 | N22: 0 | O22: 0 | P22: 0 | Q22: 0 | R22: 0
B23: Volaille | D23: 100 | E23: 100 | F23: 100 | G23: 50 | H23: =C23+D23+E23+F23+G23 -> 350 | K23: 0 | L23: 0 | M23: 0 | N23: 0 | O23: 0 | P23: 0 | Q23: 0 | R23: 0
B24: Veau | C24: 100 | H24: =C24+D24+E24+F24+G24 -> 100 | K24: 0 | L24: 0 | M24: 0 | N24: 0 | O24: 0 | P24: 0 | Q24: 0 | R24: 0
B25: Poisson | D25: 150 | E25: 50 | H25: =C25+D25+E25+F25+G25 -> 200 | K25: 0 | L25: 0 | M25: 0 | N25: 0 | O25: 0 | P25: 0 | Q25: 0 | R25: 0
B26: Bœuf | F26: 50 | G26: 100 | H26: =C26+D26+E26+F26+G26 -> 150 | K26: 0 | L26: 0 | M26: 0 | N26: 0 | O26: 0 | P26: 0 | Q26: 0 | R26: 0
K27: 0 | L27: 0 | M27: 0 | N27: 0 | O27: 0 | P27: 0 | Q27: 0 | R27: 0
K28: 0 | L28: 0 | M28: 0 | N28: 0 | O28: 0 | P28: 0 | Q28: 0 | R28: 0
K29: 0 | L29: 0 | M29: 0 | N29: 0 | O29: 0 | P29: 0 | Q29: 0 | R29: 0
K30: 0 | L30: 0 | M30: 0 | N30: 0 | O30: 0 | P30: 0 | Q30: 0 | R30: 0
K31: 0 | L31: 0 | M31: 0 | N31: 0 | O31: 0 | P31: 0 | Q31: 0 | R31: 0
K32: 0 | L32: 0 | M32: 0 | N32: 0 | O32: 0 | P32: 0 | Q32: 0 | R32: 0
K33: 0 | L33: 0 | M33: 0 | N33: 0 | O33: 0 | P33: 0 | Q33: 0 | R33: 0
